bitfinex/quotes_BTCUSD_20241011
["timestamp","ask_amount","ask_price","bid_price","bid_amount"]
[1728607131029,0.0136636,60253.0,60252.0,0.53152215]
[1728607131247,0.001632,60253.0,60252.0,0.53152215]
[1728607132167,0.001632,60253.0,60252.0,0.516]
[1728607132386,0.001632,60253.0,60252.0,0.5315262]
[1728607132629,0.001632,60253.0,60252.0,0.60603429]
[1728607133083,0.0136636,60253.0,60252.0,0.5315262]
[1728607133274,0.001632,60253.0,60252.0,0.5315262]
[1728607133474,0.0136636,60253.0,60252.0,0.5315262]
[1728607133734,0.001632,60253.0,60252.0,0.5315262]
[1728607134170,0.0136636,60253.0,60252.0,0.5315262]
[1728607134409,0.001632,60253.0,60252.0,0.5315262]
[1728607134635,0.01366019,60253.0,60252.0,0.5315262]
[1728607134852,0.001632,60253.0,60252.0,0.6808982]
[1728607135077,0.01366019,60253.0,60252.0,0.6808982]
[1728607135301,0.001632,60253.0,60252.0,0.6808982]
[1728607135525,0.001632,60253.0,60252.0,0.5315262]
[1728607135796,0.01366019,60253.0,60252.0,0.5315262]
[1728607136030,0.001632,60253.0,60252.0,0.5315262]
[1728607136272,0.01366019,60253.0,60252.0,0.5315262]
[1728607136514,0.01366019,60253.0,60252.0,0.58121095]
[1728607136515,0.001632,60253.0,60252.0,0.58121095]
[1728607136974,0.001632,60253.0,60252.0,0.6808982]
[1728607137894,0.001632,60253.0,60252.0,0.6060488]
[1728607138113,0.001632,60253.0,60252.0,0.5315262]
[1728607138352,0.01365669,60253.0,60252.0,0.58121226]
[1728607138574,0.001632,60253.0,60252.0,0.5315262]
[1728607139025,0.01365669,60253.0,60252.0,0.6808982]
[1728607139248,0.001632,60253.0,60252.0,0.6808982]
[1728607139483,0.01365687,60253.0,60252.0,0.6808982]
[1728607139731,0.001632,60253.0,60252.0,0.75542695]
[1728607140624,0.001632,60253.0,60252.0,0.75545169]
[1728607141354,0.001632,60253.0,60252.0,0.7554504]
[1728607141588,0.001632,60253.0,60252.0,0.7399242]
[1728607141827,0.001632,60253.0,60252.0,0.75546498]
[1728607142094,0.001632,60253.0,60252.0,0.7399242]
[1728607142332,0.001632,60253.0,60252.0,0.75546472]
[1728607146542,0.001632,60253.0,60252.0,0.7554708]
[1728607147482,0.001632,60253.0,60252.0,0.68091252]
[1728607148580,0.001632,60253.0,60252.0,0.53154052]
[1728607148808,0.001632,60253.0,60252.0,0.68091252]
[1728607151602,0.001632,60253.0,60252.0,0.53154052]
[1728607152074,0.01365854,60253.0,60252.0,0.53154052]
[1728607152313,0.001632,60253.0,60252.0,0.68091252]
[1728607152560,0.01365799,60253.0,60252.0,0.6809135]
[1728607152806,0.001632,60253.0,60252.0,0.6809135]
[1728607153040,0.01365854,60253.0,60252.0,0.6809135]
[1728607153274,0.001632,60253.0,60252.0,0.665372]
[1728607153488,0.01365799,60253.0,60252.0,0.76479107]
[1728607153998,0.001632,60253.0,60252.0,0.76479107]
[1728607154660,0.001632,60253.0,60252.0,0.665372]
[1728607155636,0.001632,60253.0,60252.0,0.76485797]
[1728607155850,0.001632,60253.0,60252.0,0.665372]
[1728607156299,0.001632,60253.0,60252.0,0.68092199]
[1728607156553,0.001632,60253.0,60252.0,0.665372]
[1728607156794,0.001632,60253.0,60252.0,0.6809223]
[1728607160014,0.001632,60253.0,60252.0,0.80519613]
[1728607160239,0.001632,60253.0,60252.0,0.6809223]
[1728607161443,0.001632,60253.0,60252.0,0.80530899]
[1728607162446,0.001632,60253.0,60252.0,0.65593699]
[1728607163094,0.001632,60253.0,60252.0,0.80530899]
[1728607163322,0.01365784,60253.0,60252.0,0.80530899]
[1728607163539,0.001632,60253.0,60252.0,0.80530899]
[1728607163761,0.001632,60253.0,60252.0,0.8053277]
[1728607165327,0.001632,60253.0,60252.0,0.76184101]
[1728607165565,0.001632,60253.0,60252.0,0.88623461]
[1728607167381,0.001632,60253.0,60252.0,0.8706656]
[1728607167846,0.001632,60253.0,60252.0,0.88623441]
[1728607170615,0.001632,60253.0,60252.0,1.28500417]
[1728607170851,0.001632,60253.0,60252.0,1.33688066]
[1728607171077,0.001632,60253.0,60252.0,2.93688066]
[1728607171516,0.001632,60253.0,60252.0,2.92888066]
[1728607171750,0.000816,60263.0,60262.0,0.154347]
[1728607171986,0.000816,60263.0,60262.0,0.76277917]
[1728607172209,0.000816,60263.0,60262.0,1.03487783]
[1728607172423,0.000816,60263.0,60262.0,0.70302807]
[1728607173962,0.000816,60263.0,60262.0,1.20302807]
[1728607174559,0.000816,60263.0,60262.0,1.23102807]
[1728607175049,0.000816,60263.0,60262.0,1.2169625]
[1728607175296,0.000816,60263.0,60262.0,1.2309625]
[1728607175517,0.149196,60283.0,60268.0,0.005]
[1728607175738,0.24974609,60281.0,60277.0,0.149309]
[1728607175969,0.149196,60283.0,60277.0,0.149309]
[1728607175970,0.01192551,60282.0,60277.0,0.149309]
[1728607176187,0.53867754,60300.0,60273.0,0.06512769]
[1728607176188,0.0119241,60280.0,60279.0,0.149305]
[1728607176417,0.0758,60286.0,60277.0,0.29862]
[1728607176660,0.000817,60287.0,60283.0,0.149294]
[1728607176914,0.000817,60287.0,60279.0,0.298609]
[1728607176915,0.150104,60287.0,60279.0,0.298609]
[1728607177136,0.150104,60287.0,60280.0,0.24974609]
[1728607177137,0.000817,60287.0,60280.0,0.24974609]
[1728607177365,0.000817,60287.0,60281.0,0.298599]
[1728607177594,0.000817,60287.0,60281.0,0.149298]
[1728607177812,0.149288,60286.0,60280.0,0.39904809]
[1728607178031,0.000817,60287.0,60282.0,0.149297]
[1728607178494,0.150103,60287.0,60282.0,0.149297]
[1728607178946,0.150103,60287.0,60281.0,0.008]
[1728607178947,0.000817,60287.0,60283.0,0.149294]
[1728607179408,0.000817,60287.0,60282.0,0.298593]
[1728607179652,0.000817,60287.0,60283.0,0.149294]
[1728607180349,0.000817,60287.0,60284.0,0.149292]
[1728607180569,0.000817,60287.0,60283.0,0.155295]
[1728607180831,0.150103,60287.0,60283.0,0.013]
[1728607182300,0.150103,60287.0,60283.0,0.007]
[1728607182549,0.150103,60287.0,60283.0,0.014]
[1728607182776,0.000817,60287.0,60283.0,0.014]
[1728607182996,0.150103,60287.0,60283.0,0.014]
[1728607183133,0.150103,60287.0,60284.0,0.5]
[1728607184420,0.150103,60287.0,60284.0,0.506]
[1728607184676,0.14929,60285.0,60284.0,0.506]
[1728607184913,0.149288,60286.0,60284.0,0.506]
[1728607185148,0.149289,60286.0,60284.0,0.506]
[1728607185376,0.149289,60286.0,60284.0,0.512]
[1728607185624,0.000817,60287.0,60284.0,0.512]
[1728607185815,0.149288,60286.0,60284.0,0.506]
[1728607186044,0.000817,60287.0,60285.0,0.149288]
[1728607186503,0.000817,60287.0,60284.0,0.661291]
[1728607186953,0.000817,60287.0,60284.0,0.649291]
[1728607187231,0.000817,60287.0,60285.0,0.005]
[1728607187449,0.01194731,60286.0,60285.0,0.005]
[1728607187936,0.000817,60287.0,60285.0,0.005]
[1728607188173,0.01194731,60286.0,60285.0,0.005]
[1728607188356,0.01194731,60286.0,60284.0,0.512]
[1728607188585,0.01194731,60286.0,60284.0,0.5]
[1728607188824,0.01194731,60286.0,60285.0,0.004]
[1728607190219,0.01194731,60286.0,60285.0,0.009]
[1728607190676,0.01194731,60286.0,60285.0,0.005]
[1728607191348,0.01194731,60286.0,60285.0,0.009]
[1728607192554,0.16123531,60286.0,60285.0,0.009]
[1728607193245,0.01194731,60286.0,60285.0,0.009]
[1728607193930,0.01276331,60286.0,60285.0,0.009]
[1728607204621,0.01276331,60286.0,60285.0,0.0087706]
[1728607210357,0.01276331,60286.0,60285.0,0.1580606]
[1728607210838,0.01276331,60286.0,60285.0,0.0087706]
[1728607211252,0.16205131,60286.0,60285.0,0.0087706]
[1728607211475,0.01276331,60286.0,60285.0,0.0087706]
[1728607212948,0.16205131,60286.0,60285.0,0.0087706]
[1728607213174,0.01276331,60286.0,60285.0,0.0087706]
[1728607216204,0.16205131,60286.0,60285.0,0.0087706]
[1728607216435,0.01276331,60286.0,60285.0,0.0087706]
[1728607217340,0.01276331,60286.0,60285.0,0.05843219]
[1728607219657,0.01276331,60286.0,60285.0,0.0087706]
[1728607221227,0.01276331,60286.0,60285.0,0.08343945]
[1728607222333,0.01276331,60286.0,60285.0,0.0087706]
[1728607224968,0.28700389,60286.0,60285.0,0.0087706]
[1728607225224,0.63901319,60286.0,60285.0,0.0087706]
[1728607225450,0.7087595,60286.0,60285.0,0.0087706]
[1728607225678,0.75847296,60286.0,60285.0,0.0087706]
[1728607225942,0.75847296,60286.0,60285.0,0.004]
[1728607225943,0.77063977,60286.0,60285.0,0.004]
[1728607226175,0.63071169,60286.0,60285.0,0.002]
[1728607226626,0.63071169,60286.0,60283.0,0.001632]
[1728607226627,0.330693,60284.0,60283.0,0.001632]
[1728607226844,0.62495488,60284.0,60283.0,0.001632]
[1728607227109,0.63692947,60284.0,60283.0,0.001632]
[1728607227996,0.63892947,60284.0,60283.0,0.001632]
[1728607228217,0.63692947,60284.0,60283.0,0.001632]
[1728607228911,0.63792947,60284.0,60283.0,0.001632]
[1728607231998,0.63992947,60284.0,60283.0,0.001632]
[1728607232455,0.63792947,60284.0,60283.0,0.001632]
[1728607234061,0.51297689,60284.0,60283.0,0.001632]
[1728607234287,0.63792947,60284.0,60283.0,0.001632]
[1728607238363,0.16226759,60284.0,60283.0,0.001632]
[1728607239064,0.16126759,60284.0,60283.0,0.001632]
[1728607239287,0.16126759,60284.0,60283.0,0.003632]
[1728607239723,0.16126759,60284.0,60283.0,0.001632]
[1728607239934,0.16126759,60284.0,60283.0,0.004632]
[1728607240380,0.16126759,60284.0,60283.0,0.007632]
[1728607249657,0.16126759,60284.0,60283.0,0.001632]
[1728607254373,0.01197459,60284.0,60283.0,0.001632]
[1728607255450,0.01197459,60284.0,60283.0,0.152927]
[1728607255680,0.01197459,60284.0,60283.0,0.154927]
[1728607256251,0.01197459,60284.0,60283.0,0.247827]
[1728607256691,0.01197459,60284.0,60283.0,0.098532]
[1728607257099,0.01197459,60284.0,60283.0,0.330827]
[1728607257317,0.000816,60285.0,60284.0,0.149293]
[1728607257935,0.000816,60285.0,60284.0,0.247793]
[1728607258591,0.000816,60285.0,60284.0,0.1005]
[1728607259016,0.01494498,60285.0,60284.0,0.1005]
[1728607261967,0.28918756,60285.0,60284.0,0.002]
[1728607262188,0.53389686,60285.0,60284.0,0.002]
[1728607262447,0.75884944,60285.0,60284.0,0.002]
[1728607262698,0.63389686,60285.0,60284.0,0.002]
[1728607262932,0.63389686,60285.0,60283.0,0.001632]
[1728607262933,0.249293,60284.0,60283.0,0.001632]
[1728607263211,0.4186023,60284.0,60283.0,0.001632]
[1728607263467,0.43273473,60284.0,60283.0,0.001632]
[1728607263744,0.55768731,60284.0,60283.0,0.001632]
[1728607264813,0.55868731,60284.0,60283.0,0.002632]
[1728607265302,0.55868731,60284.0,60283.0,0.003632]
[1728607267331,0.63438731,60284.0,60283.0,0.003632]
[1728607267626,0.63338731,60284.0,60283.0,0.002632]
[1728607267815,0.63338731,60284.0,60283.0,0.001632]
[1728607268049,0.63438731,60284.0,60283.0,0.001632]
[1728607268726,0.63338731,60284.0,60283.0,0.001632]
[1728607269385,0.63438731,60284.0,60283.0,0.001632]
[1728607276906,0.64708495,60284.0,60283.0,0.001632]
[1728607277395,0.63438731,60284.0,60283.0,0.001632]
[1728607284170,0.55868731,60284.0,60283.0,0.001632]
[1728607287718,0.38937801,60284.0,60283.0,0.001632]
[1728607287986,0.01513243,60284.0,60283.0,0.078832]
[1728607288228,0.01513243,60284.0,60283.0,0.320427]
[1728607288229,0.01413243,60284.0,60283.0,0.320427]
[1728607288700,0.001,60284.0,60283.0,0.37013031]
[1728607288936,0.001,60284.0,60283.0,0.39498196]
[1728607289199,0.001,60284.0,60283.0,0.320427]
[1728607289479,0.001,60284.0,60283.0,0.323427]
[1728607289716,0.001,60284.0,60283.0,0.41988273]
[1728607289949,0.000816,60285.0,60283.0,0.41988273]
[1728607289950,0.000816,60285.0,60284.0,0.328893]
[1728607290474,0.000816,60285.0,60284.0,0.45321267]
[1728607290687,0.000816,60285.0,60284.0,0.328893]
[1728607291890,0.000816,60285.0,60284.0,0.342893]
[1728607292586,0.000816,60285.0,60284.0,0.355893]
[1728607293073,0.000816,60285.0,60284.0,0.341893]
[1728607293306,0.000816,60285.0,60284.0,0.47810063]
[1728607295388,0.000816,60285.0,60284.0,0.353893]
[1728607296259,0.000816,60285.0,60284.0,0.45320999]
[1728607297671,0.000816,60285.0,60284.0,0.4531965]
[1728607299338,0.000816,60285.0,60284.0,0.353893]
[1728607299579,0.000816,60285.0,60284.0,0.355525]
[1728607300204,0.000816,60285.0,60284.0,0.37103084]
[1728607300396,0.000816,60285.0,60284.0,0.44548299]
[1728607302352,0.000816,60285.0,60284.0,0.44547316]
[1728607302825,0.000816,60285.0,60284.0,0.37103084]
[1728607303231,0.000816,60285.0,60284.0,0.44546646]
[1728607306890,0.000816,60285.0,60284.0,0.44544991]
[1728607307683,0.000816,60285.0,60284.0,0.94544991]
[1728607308129,0.000816,60285.0,60284.0,0.87103084]
[1728607308343,0.000816,60285.0,60284.0,0.855525]
[1728607308554,0.000816,60285.0,60284.0,0.87103078]
[1728607308772,0.000816,60285.0,60284.0,0.94544985]
[1728607308971,0.000816,60285.0,60284.0,0.93244985]
[1728607310096,0.000816,60285.0,60284.0,0.94344985]
[1728607310527,0.000816,60285.0,60284.0,0.86903078]
[1728607311161,0.000816,60285.0,60284.0,0.78693078]
[1728607311374,0.12576858,60285.0,60284.0,0.68943078]
[1728607311587,0.12576858,60285.0,60284.0,0.673925]
[1728607311805,0.01495457,60285.0,60284.0,0.68943875]
[1728607314343,0.000816,60285.0,60284.0,0.68943875]
[1728607315853,0.01495439,60285.0,60284.0,0.68943875]
[1728607316578,0.01495439,60285.0,60284.0,0.54014575]
[1728607318193,0.01495439,60285.0,60284.0,0.673925]
[1728607320175,0.01495439,60285.0,60284.0,0.524632]
[1728607320612,0.01495439,60285.0,60284.0,0.673925]
[1728607323608,0.01495439,60285.0,60284.0,0.72356039]
[1728607324820,0.000816,60285.0,60284.0,0.72356039]
[1728607325018,0.01494926,60285.0,60284.0,0.73910967]
[1728607325247,0.01494926,60285.0,60284.0,0.72810967]
[1728607325565,0.01494926,60285.0,60284.0,0.71610967]
[1728607325703,0.01494926,60285.0,60284.0,0.94467995]
[1728607325907,0.000816,60285.0,60284.0,0.99049765]
[1728607326336,0.000816,60285.0,60284.0,0.86560244]
[1728607327271,0.000816,60285.0,60284.0,0.738725]
[1728607327493,0.000816,60285.0,60284.0,0.741725]
[1728607327707,0.000816,60285.0,60284.0,0.753725]
[1728607328633,0.000816,60285.0,60284.0,0.87781348]
[1728607329318,0.000816,60285.0,60284.0,0.753725]
[1728607329574,0.000816,60285.0,60284.0,0.87792549]
[1728607329810,0.000816,60285.0,60284.0,0.753725]
[1728607330059,0.000816,60285.0,60284.0,0.674925]
[1728607330307,0.000816,60285.0,60284.0,0.79912549]
[1728607330793,0.150106,60285.0,60284.0,0.54118275]
[1728607331038,0.150106,60285.0,60284.0,0.525632]
[1728607331266,0.16424033,60285.0,60284.0,0.525632]
[1728607331720,0.16424033,60285.0,60284.0,0.501632]
[1728607331966,0.16424033,60285.0,60284.0,0.513632]
[1728607332458,0.33354963,60285.0,60284.0,0.513632]
[1728607332706,0.33454963,60285.0,60284.0,0.513632]
[1728607334048,0.33454963,60285.0,60284.0,0.501632]
[1728607334314,0.33554963,60285.0,60284.0,0.501632]
[1728607337652,0.33554963,60285.0,60284.0,0.001632]
[1728607338837,0.33454963,60285.0,60284.0,0.001632]
[1728607339057,0.33554963,60285.0,60284.0,0.001632]
[1728607339785,0.61474963,60285.0,60284.0,0.001632]
[1728607340016,0.61974963,60285.0,60284.0,0.001632]
[1728607340239,0.61874963,60285.0,60284.0,0.001632]
[1728607340694,0.74470221,60285.0,60284.0,0.001632]
[1728607340922,0.73970221,60285.0,60284.0,0.001632]
[1728607341151,0.73770221,60285.0,60284.0,0.001632]
[1728607341418,0.64420221,60285.0,60284.0,0.001632]
[1728607341644,0.65020221,60285.0,60284.0,0.001632]
[1728607341894,0.02595033,60285.0,60284.0,0.001632]
[1728607342573,0.17524033,60285.0,60284.0,0.001632]
[1728607342798,0.29419291,60285.0,60284.0,0.001632]
[1728607343041,0.29519291,60285.0,60284.0,0.001632]
[1728607343708,0.29019291,60285.0,60284.0,0.001632]
[1728607347083,0.16524033,60285.0,60284.0,0.001632]
[1728607347301,0.29019291,60285.0,60284.0,0.001632]
[1728607349506,0.01595033,60285.0,60284.0,0.247725]
[1728607349729,0.01595033,60285.0,60284.0,0.326025]
[1728607349961,0.001816,60285.0,60284.0,0.37570058]
[1728607350415,0.001816,60285.0,60284.0,0.326025]
[1728607350848,0.001816,60285.0,60284.0,0.338025]
[1728607351081,0.000816,60285.0,60284.0,0.338025]
[1728607351302,0.000816,60285.0,60284.0,0.326025]
[1728607351526,0.000816,60285.0,60284.0,0.338025]
[1728607351772,0.000816,60285.0,60284.0,0.337025]
[1728607351989,0.000816,60285.0,60284.0,0.348025]
[1728607353343,0.000816,60285.0,60284.0,0.42253624]
[1728607355339,0.000816,60285.0,60284.0,0.348025]
[1728607358183,0.000816,60285.0,60284.0,0.44739553]
[1728607361719,0.000816,60285.0,60284.0,0.348025]
[1728607361928,0.000816,60285.0,60284.0,0.44739368]
[1728607363556,0.000816,60285.0,60284.0,0.94739368]
[1728607365154,0.000816,60285.0,60284.0,0.92255007]
[1728607365595,0.000816,60285.0,60284.0,0.897711]
[1728607365826,0.01495007,60285.0,60284.0,0.848025]
[1728607366040,0.01495007,60285.0,60284.0,0.89771051]
[1728607367151,0.01495007,60285.0,60284.0,0.81941051]
[1728607367347,0.000816,60285.0,60284.0,0.81941051]
[1728607370350,0.000816,60285.0,60284.0,0.57331751]
[1728607370589,0.01495007,60285.0,60284.0,0.523632]
[1728607370821,0.16424007,60285.0,60284.0,0.523632]
[1728607371270,0.16424007,60285.0,60284.0,0.512632]
[1728607371709,0.16424007,60285.0,60284.0,0.508632]
[1728607371923,0.16424007,60285.0,60284.0,0.501632]
[1728607372132,0.16424007,60285.0,60284.0,0.508632]
[1728607372583,0.16424007,60285.0,60284.0,0.501632]
[1728607372794,0.16624007,60285.0,60284.0,0.501632]
[1728607373253,0.16924007,60285.0,60284.0,0.501632]
[1728607373453,0.16924007,60285.0,60284.0,0.001632]
[1728607373866,0.01995007,60285.0,60284.0,0.001632]
[1728607375148,0.01995007,60285.0,60284.0,0.150925]
[1728607378105,0.01695007,60285.0,60284.0,0.150925]
[1728607378313,0.002816,60285.0,60284.0,0.151925]
[1728607378925,0.000816,60285.0,60284.0,0.151925]
[1728607379159,0.000816,60285.0,60284.0,0.153925]
[1728607379357,0.014947,60285.0,60284.0,0.153925]
[1728607381135,0.014947,60285.0,60284.0,0.20362868]
[1728607381364,0.014947,60285.0,60284.0,0.20362798]
[1728607381584,0.014947,60285.0,60284.0,0.153925]
[1728607381808,0.000816,60285.0,60284.0,0.153925]
[1728607382714,0.0149453,60285.0,60284.0,0.153925]
[1728607383185,0.0149453,60285.0,60284.0,0.22847993]
[1728607383906,0.0149453,60285.0,60284.0,0.35427758]
[1728607384121,0.0149453,60285.0,60284.0,0.229325]
[1728607384122,0.000816,60285.0,60284.0,0.229325]
[1728607384776,0.000816,60285.0,60284.0,0.228325]
[1728607385208,0.000816,60285.0,60284.0,0.236325]
[1728607385423,0.000816,60285.0,60284.0,0.234325]
[1728607385869,0.000816,60285.0,60284.0,0.242325]
[1728607386305,0.000816,60285.0,60284.0,0.742325]
[1728607386545,0.000816,60285.0,60284.0,0.666925]
[1728607386968,0.000816,60285.0,60284.0,0.7911858]
[1728607386969,0.01495006,60285.0,60284.0,0.7911858]
[1728607387209,0.01495006,60285.0,60284.0,0.666925]
[1728607387646,0.01495006,60285.0,60284.0,0.7911858]
[1728607387859,0.000816,60285.0,60284.0,0.7911858]
[1728607388486,0.000816,60285.0,60284.0,0.666925]
[1728607388694,0.000816,60285.0,60284.0,0.7911858]
[1728607389805,0.01494953,60285.0,60284.0,0.7911858]
[1728607391149,0.01494953,60285.0,60284.0,0.80672536]
[1728607392250,0.01494953,60285.0,60284.0,0.7911858]
[1728607392677,0.000816,60285.0,60284.0,0.7911858]
[1728607393095,0.01495125,60285.0,60284.0,0.7911858]
[1728607393526,0.01495125,60285.0,60284.0,0.666925]
[1728607394352,0.01495125,60285.0,60284.0,0.68246436]
[1728607394785,0.01495125,60285.0,60284.0,0.80679376]
[1728607395424,0.01495125,60285.0,60284.0,0.7912544]
[1728607395634,0.000816,60285.0,60284.0,0.82233282]
[1728607399913,0.01494949,60285.0,60284.0,0.82233282]
[1728607401404,0.01494949,60285.0,60284.0,0.67303982]
[1728607402061,0.01494949,60285.0,60284.0,0.8223344]
[1728607402939,0.01494949,60285.0,60284.0,0.80679519]
[1728607405833,0.01494949,60285.0,60284.0,0.80680382]
[1728607406063,0.01494949,60285.0,60284.0,0.9317564]
[1728607406308,0.01494949,60285.0,60284.0,0.807427]
[1728607406526,0.000816,60285.0,60284.0,0.807427]
[1728607407866,0.000816,60285.0,60284.0,0.799427]
[1728607408093,0.000816,60285.0,60284.0,0.810427]
[1728607408515,0.000816,60285.0,60284.0,0.799427]
[1728607408703,0.000816,60285.0,60284.0,0.809427]
[1728607408921,0.000816,60285.0,60284.0,0.820427]
[1728607409161,0.000816,60285.0,60284.0,0.802427]
[1728607409380,0.000816,60285.0,60284.0,0.68847442]
[1728607409575,0.000816,60285.0,60284.0,0.79787758]
[1728607411493,0.000816,60285.0,60284.0,0.81342639]
[1728607413473,0.000816,60285.0,60284.0,0.79787758]
[1728607421719,0.000816,60285.0,60284.0,0.81342521]
[1728607423364,0.000816,60285.0,60284.0,0.79787758]
[1728607423613,0.000816,60285.0,60284.0,0.94701131]
[1728607423853,0.000816,60285.0,60284.0,0.79787758]
[1728607425556,0.000816,60285.0,60284.0,0.94701131]
[1728607425797,0.000816,60285.0,60284.0,0.82205873]
[1728607426964,0.000816,60285.0,60284.0,0.82218415]
[1728607428245,0.229806,60285.0,60284.0,0.523632]
[1728607428515,0.36889531,60285.0,60284.0,0.57339498]
[1728607428975,0.36889531,60285.0,60284.0,0.55139498]
[1728607429237,0.36889531,60285.0,60284.0,0.501632]
[1728607429460,0.36889531,60285.0,60284.0,0.512632]
[1728607430380,0.36889531,60285.0,60284.0,0.522632]
[1728607430601,0.36889531,60285.0,60284.0,0.511632]
[1728607430845,0.36989531,60285.0,60284.0,0.501632]
[1728607431085,0.37189531,60285.0,60284.0,0.501632]
[1728607431791,0.37189531,60285.0,60284.0,0.001632]
[1728607433406,0.24694273,60285.0,60284.0,0.001632]
[1728607433634,0.16724273,60285.0,60284.0,0.001632]
[1728607434365,0.16524273,60285.0,60284.0,0.001632]
[1728607434613,0.01695273,60285.0,60284.0,0.150925]
[1728607435118,0.002816,60285.0,60284.0,0.152925]
[1728607435382,0.002816,60285.0,60284.0,0.20264671]
[1728607435631,0.000816,60285.0,60284.0,0.20264671]
[1728607435868,0.000816,60285.0,60284.0,0.25036011]
[1728607436113,0.000816,60285.0,60284.0,0.156925]
[1728607436356,0.000816,60285.0,60284.0,0.25636011]
[1728607436587,0.000816,60285.0,60284.0,0.25636327]
[1728607436821,0.000816,60285.0,60284.0,0.27389329]
[1728607437323,0.000816,60285.0,60284.0,0.27189329]
[1728607437807,0.000816,60285.0,60284.0,0.27789329]
[1728607439010,0.000816,60285.0,60284.0,0.37289456]
[1728607439240,0.000816,60285.0,60284.0,0.26075518]
[1728607439484,0.000816,60285.0,60284.0,0.26407234]
[1728607440663,0.000816,60285.0,60284.0,0.36317234]
[1728607440874,0.000816,60285.0,60284.0,0.35985518]
[1728607448273,0.000816,60285.0,60284.0,0.344325]
[1728607448540,0.000816,60285.0,60284.0,0.3598572]
[1728607452555,0.000816,60285.0,60284.0,0.2775572]
[1728607452795,0.000816,60285.0,60284.0,0.1784572]
[1728607455125,0.000816,60285.0,60284.0,0.162925]
[1728607455392,0.000816,60285.0,60284.0,0.17845823]
[1728607455851,0.000816,60285.0,60284.0,0.30274909]
[1728607456063,0.000816,60285.0,60284.0,0.30274896]
[1728607456306,0.000816,60285.0,60284.0,0.30275051]
[1728607456518,0.000816,60285.0,60284.0,0.30274994]
[1728607457130,0.000816,60285.0,60284.0,0.17845823]
[1728607458656,0.000816,60285.0,60284.0,0.17845969]
[1728607462238,0.000816,60285.0,60284.0,0.162925]
[1728607462463,0.000816,60285.0,60284.0,0.26238353]
[1728607462676,0.000816,60285.0,60284.0,0.35488353]
[1728607462896,0.000816,60285.0,60284.0,0.50071506]
[1728607463127,0.000816,60285.0,60284.0,0.50071248]
[1728607463557,0.000816,60285.0,60284.0,0.35156629]
[1728607463791,0.000816,60285.0,60284.0,0.50071248]
[1728607465347,0.000816,60285.0,60284.0,0.50072221]
[1728607468122,0.000816,60285.0,60284.0,0.49472221]
[1728607468374,0.000816,60285.0,60284.0,0.50172221]
[1728607468788,0.000816,60285.0,60284.0,0.50017119]
[1728607469048,0.000816,60285.0,60284.0,0.50172307]
[1728607469727,0.000816,60285.0,60284.0,0.48872307]
[1728607469939,0.000816,60285.0,60284.0,0.50272307]
[1728607470351,0.000816,60285.0,60284.0,0.51672307]
[1728607472429,0.000816,60285.0,60284.0,0.50117119]
[1728607472648,0.000816,60285.0,60284.0,0.5167214]
[1728607473268,0.000816,60285.0,60284.0,0.36757521]
[1728607475394,0.000816,60285.0,60284.0,0.5167214]
[1728607475719,0.000816,60285.0,60284.0,0.50117119]
[1728607475920,0.000816,60285.0,60284.0,0.51672]
[1728607476113,0.000816,60285.0,60284.0,0.36757381]
[1728607477766,0.00056507,60285.0,60284.0,0.36757381]
[1728607478257,0.00056507,60285.0,60284.0,0.66183569]
[1728607478436,0.00056507,60285.0,60284.0,0.53688311]
[1728607478640,0.00056507,60285.0,60284.0,0.93386043]
[1728607478857,0.00056507,60285.0,60284.0,0.80890785]
[1728607479113,0.00056507,60285.0,60284.0,0.80890465]
[1728607479318,0.00056507,60285.0,60284.0,0.79490465]
[1728607479547,0.00056507,60285.0,60284.0,0.80890465]
[1728607479755,0.00056507,60285.0,60284.0,0.8089026]
[1728607479977,0.00056507,60285.0,60284.0,0.7949026]
[1728607480200,0.00056507,60285.0,60284.0,0.57470018]
[1728607480431,0.00056507,60285.0,60284.0,0.58870018]
[1728607480644,0.00056507,60285.0,60284.0,0.57470018]
[1728607480854,0.00056507,60285.0,60284.0,0.71365276]
[1728607481275,0.00056507,60285.0,60284.0,0.80663165]
[1728607481483,0.00056507,60285.0,60284.0,0.82063165]
[1728607482124,0.00056507,60285.0,60284.0,0.83317842]
[1728607482744,0.00056507,60285.0,60284.0,0.81917842]
[1728607482962,0.00056507,60285.0,60284.0,0.83317842]
[1728607483579,0.00056507,60285.0,60284.0,0.81917842]
[1728607483784,0.00056507,60285.0,60284.0,0.80517842]
[1728607484003,0.00056507,60285.0,60284.0,0.83317842]
[1728607485810,0.00056507,60285.0,60284.0,0.81763486]
[1728607486225,0.00056507,60285.0,60284.0,0.83316165]
[1728607487069,0.00056507,60285.0,60284.0,0.81916165]
[1728607487506,0.00056507,60285.0,60284.0,0.83316165]
[1728607487992,0.00056507,60285.0,60284.0,0.85616165]
[1728607488856,0.00056507,60285.0,60284.0,0.84016165]
[1728607489082,0.00056507,60285.0,60284.0,0.82616165]
[1728607489323,0.00056507,60285.0,60284.0,0.84015942]
[1728607489769,0.00056507,60285.0,60284.0,0.82615942]
[1728607490205,0.00056507,60285.0,60284.0,0.82815942]
[1728607490421,0.00056507,60285.0,60284.0,0.84215942]
[1728607490651,0.00056507,60285.0,60284.0,0.85615942]
[1728607490833,0.00056507,60285.0,60284.0,0.84215942]
[1728607491062,0.00056507,60285.0,60284.0,0.85415942]
[1728607491274,0.00056507,60285.0,60284.0,0.85615942]
[1728607491485,0.00056507,60285.0,60284.0,0.70620684]
[1728607491709,0.00056507,60285.0,60284.0,0.92822031]
[1728607491921,0.00056507,60285.0,60284.0,0.8764191]
[1728607492379,0.00056507,60285.0,60284.0,0.64904063]
[1728607492601,0.00056507,60285.0,60284.0,0.70078284]
[1728607492820,0.00056507,60285.0,60284.0,0.71478284]
[1728607493936,0.00056507,60285.0,60284.0,0.83973542]
[1728607494640,0.00056507,60285.0,60284.0,0.83773542]
[1728607495273,0.00056507,60285.0,60284.0,1.05773025]
[1728607495714,0.00056507,60285.0,60284.0,0.83973542]
[1728607495936,0.00056507,60285.0,60284.0,0.82420845]
[1728607496374,0.00056507,60285.0,60284.0,0.83973584]
[1728607497642,0.00056507,60285.0,60284.0,1.05971615]
[1728607499453,0.00056507,60285.0,60284.0,1.04418876]